Cogmind - Beta 16.1 @@@ ROGUE MODE // 2026.03.28 @ 00:51:08 Player: Vena Result: Destroyed by Y-45 Defender with Beam Rifle Performance ------------- Evolutions (0) 0 Regions Visited (2) 400 Robots Destroyed (18) 90 Value Destroyed (384) 384 Prototype IDs (0) 0 Alien Tech Used (0) 0 Bonus (-21) -21 TOTAL SCORE: 853 Bonus ------- Friendly Fire -21 Cogmind --------- Core Integrity 0/250 Matter 300/300 Energy 98/100 System Corruption 0% Temperature Cool (10) Movement Walking (120) Location -10/Subcaves Parts ------- > --- POWER (1) -------- (None) > --- PROPULSION (2) --- Carbon-fiber Leg Subdweller Monowheel > --- UTILITY (2) ------ Small Storage Unit Improved Terrain Scanner > --- WEAPON (2) ------- (None) > --- INVENTORY (8) ---- Ion Engine Light Ion Engine Wheel Scrap Shield Peak State ------------ > --- POWER ------------ Subdweller Power Source > --- PROPULSION ------- Wheel Wheel > --- UTILITY ---------- Small Storage Unit Improved Terrain Scanner > --- WEAPON ----------- Beamcaster Subdweller Machine Gun > --- INVENTORY -------- Ion Engine Light Ion Engine Carbon-fiber Leg Scrap Shield Assault Rifle [Rating: 16] Favorites ----------- Power Subdweller Power Source Engine Subdweller Power Source Propulsion Wheel Leg Carbon-fiber Leg Wheel Wheel Utility Improved Terrain Scanner Device Improved Terrain Scanner Storage Small Storage Unit Weapon Assault Rifle Energy Gun Beamcaster Ballistic Gun Assault Rifle Launcher Grenade Launcher Build | -11 -10 -10 ------- Run | Yrd Mat Sub Slots Evolved . | . . . Power . | . . . Propulsion . | . . . Utility . | . . . Weapon . | . . . Parts Attached 20 | 9 3 8 Power 3 | 1 1 1 Engine 3 | 1 1 1 Core . | . . . Reactor . | . . . Propulsion 8 | 4 . 4 Treads . | . . . Leg 1 | . . 1 Wheel 7 | 4 . 3 Hover . | . . . Flight . | . . . Utility 3 | 2 . 1 Device 2 | 2 . . Storage 1 | . . 1 Processor . | . . . Hackware . | . . . Protection . | . . . Artifact . | . . . Weapon 6 | 2 2 2 Energy Gun 1 | . . 1 Energy Cannon . | . . . Ballistic Gun 4 | 2 1 1 Ballistic Cannon . | . . . Launcher 1 | . 1 . Special Weapon . | . . . Impact Weapon . | . . . Slashing Weapon . | . . . Piercing Weapon . | . . . Special Melee Weapon . | . . . Unidentified Prototypes . | . . . Parts Lost 10 | . 1 9 Power 1 | . . 1 Propulsion 5 | . 1 4 Utility . | . . . Weapon 4 | . . 4 Highest Loss Streak 6 | . 1 6 To Critical Strikes . | . . . Average Backups 5 | 4 5 5 Power 1 | . 1 2 Propulsion 1 | 1 1 1 Utility . | . 1 1 Weapon 1 | . 1 1 Tool/Special . | . . . Unused Backups 5 | 2 . 3 Power 1 | . . 1 Propulsion 3 | 2 . 1 Utility 1 | . . 1 Weapon . | . . . Tool/Special . | . . . Average Slot Usage (%) 96 | . 100 94 Engine 13 | . 14 12 Leg 1 | . . 1 Wheel 26 | . 28 25 Device 18 | . 28 14 Storage 9 | . . 13 Energy Gun 1 | . . 2 Ballistic Gun 16 | . 23 13 Launcher 7 | . 4 8 Peak Build Rating 16 | 9 9 16 Average Rating 9 | 5 8 11 On Entrance 6 | . 9 9 Avg Prop Armor Cover (%) 7 | . . 7 Naked Turns . | . . . Heaviest Build 20 | 8 12 20 Greatest Support 26 | 26 20 20 Greatest Overweight (x) 1 | 1 . 1 Average Overweight (x) . | . . . Largest Inventory Capacity 8 | 5 5 8 Average Capacity 6 | 5 5 7 Most Carried 8 | 5 5 8 Average Carried 5 | 4 4 6 Final Capacity 8 | 5 5 8 Final Carried 5 | 5 5 5 Class Distribution -------------------- 80% | Scavenger-Mutant 19% | Mutant Dominant Class ---------------- Scavenger-Mutant | -10/Materials Scavenger-Mutant | -10/Subcaves Resources | -11 -10 -10 ----------- Run | Yrd Mat Sub Matter Collected 634 | 356 25 253 Remotely . | . . . Salvage Created 414 | 179 89 146 Parts 42 | 23 7 12 Haulers Intercepted . | . . . Recyclers Shooed . | . . . Parts Field Recycled . | . . . Retrieved Matter . | . . . Parts Self-Destructed 11 | . . 11 Prevented . | . . . Parts Restored . | . . . Kills | -11 -10 -10 ------- Run | Yrd Mat Sub Combat Hostiles Destroyed 10 | . 2 8 Guns 3 | . 2 1 AOE 7 | . . 7 Classes Destroyed 6 | 3 1 2 Worker 2 | 2 . . Tunneler 5 | 5 . . Recycler 1 | 1 . . Swarmer 2 | . . 2 Grunt 2 | . 2 . Subdweller 6 | . . 6 Best Kill Streak 6 | 4 2 6 Combat Bots Only 6 | . 2 6 Max Kills in Single Turn 3 | 1 1 3 Gunslinging . | . . . Exploded 3 | . . 3 Melee . | . . . Uniques/NPCs Destroyed . | . . . Combat | -11 -10 -10 -------- Run | Yrd Mat Sub Hostile Shots Fired 89 | . 16 73 Missed 36 | . 4 32 Hits 53 | . 12 41 Projectile 53 | . 12 41 Critical Strikes 2 | . . 2 Damage Taken 978 | . 197 781 Core 262 | . 30 232 Absorbed by Shields . | . . . Core Remaining (%) 100 | 100 . . Volleys Fired 43 | 18 12 13 Largest 2 | 2 2 2 Hottest 105 | 40 40 105 Shots Fired 81 | 36 24 21 Gun 73 | 36 24 13 Cannon . | . . . Launcher 8 | . . 8 Special . | . . . Kinetic 69 | 36 24 9 Thermal 4 | . . 4 Explosive 8 | . . 8 Electromagnetic . | . . . Robot Hit Streak 24 | 6 14 24 Robot Miss Streak 2 | 2 2 1 Penetration Max . | . . . Secondary Targets . | . . . Shots Hit Robots 55 | 22 18 15 Core Hits 33 | 12 5 16 Critical Kills . | . . . Critical Parts Destroyed . | . . . Critical Strikes . | . . . Melee Attacks . | . . . Impact . | . . . Slashing . | . . . Piercing . | . . . Sneak Attacks . | . . . Combat Hostiles . | . . . Follow-up Attacks . | . . . Damage Inflicted 1518 | 221 229 1068 Guns 613 | 221 229 163 Cannons . | . . . Explosions 905 | . . 905 Melee . | . . . Ramming . | . . . Kinetic 550 | 221 229 100 Thermal 63 | . . 63 Explosive 905 | . . 905 Electromagnetic . | . . . Impact . | . . . Slashing . | . . . Piercing . | . . . Highest Corruption . | . . . Average Corruption . | . . . Corruption Purged . | . . . Corruption Blocked . | . . . Overload Shots . | . . . Overflow Damage 4 | . . 4 Projectiles . | . . . Explosions 4 | . . 4 Melee . | . . . Knockbacks . | . . . Impact . | . . . Kinetic . | . . . Secondary . | . . . Self-Inflicted Damage 18 | . . 18 Shots 1 | . . 1 Rammed . | . . . Targets Rammed . | . . . Kicked . | . . . Crushed . | . . . Highest Temperature 235 | . 5 235 Average Temperature 69 | . 2 124 Received Heat Transfer 504 | . 84 420 Siege Activations . | . . . Martial Activations . | . . . Shielding Activations . | . . . Robots Disrupted . | . . . Combat Hostiles . | . . . Robots Corrupted . | . . . Combat Hostiles . | . . . Parts Fried . | . . . Impact Corruptions . | . . . Robots Melted . | . . . Combat Hostiles . | . . . Parts Melted . | . . . Heat Transferred 111 | . . 111 Parts Sabotaged . | . . . Parts Stolen . | . . . Parts Stripped . | . . . Power Chain Reactions . | . . . Alert | -11 -10 -10 ------- Run | Yrd Mat Sub Maximum Alert Level . | . . . Low Security (%) 100 | 100 100 . Level 1 . | . . . Level 2 . | . . . Level 3 . | . . . Level 4 . | . . . Level 5 . | . . . High Security . | . . . Max Security . | . . . Peak Influence 50 | 10 50 . Initial . | . . . Average 3 | 1 5 . Influence Increases 190 | 40 50 100 Destroy 0b10 Robot/C 80 | . 40 40 Destroy 0b10 Robot/NC 40 | 40 . . Destroy Leader 10 | . 10 . Lose Combat Pursuer 60 | . . 60 Influence Decreases 190 | 40 20 130 Entered New Map 15 | . . 15 Time Decay 125 | 40 10 75 Lost Part 50 | . 10 40 Squads Dispatched . | . . . Investigation . | . . . Extermination . | . . . Reinforcement . | . . . Assault . | . . . Garrison . | . . . Intercept . | . . . Searches Triggered . | . . . Construction Impeded . | . . . Haulers Reinforced . | . . . Active Scanning Responses . | . . . Cargo Convoy Interrupts . | . . . Stealth | -11 -10 -10 --------- Run | Yrd Mat Sub Distress Signals . | . . . Communications Jammed . | . . . Distress Signals . | . . . Times Spotted 24 | . 4 20 Peak Tracking Total 8 | . 4 8 Tactical Retreats 2 | . . 2 Traps | -11 -10 -10 ------- Run | Yrd Mat Sub Traps Triggered . | . . . Indirectly . | . . . Trap Hack Attempts . | . . . Triggered . | . . . Disarmed . | . . . Reprogrammed . | . . . Reused . | . . . Traps Extracted . | . . . Installed . | . . . Triggered . | . . . Machines | -11 -10 -10 ---------- Run | Yrd Mat Sub Machines Disabled . | . . . Max in Single Turn . | . . . Machines Repaired . | . . . Machines Dismantled . | . . . Machines Sabotaged . | . . . Overloaded Fab Kills . | . . . Hacking | -11 -10 -10 --------- Run | Yrd Mat Sub Machines Accessed . | . . . Terminals . | . . . Fabricators . | . . . Repair Stations . | . . . Recycling Units . | . . . Scanalyzers . | . . . Garrison Access . | . . . Total Hacks . | . . . Successful . | . . . Failed . | . . . Catastrophic . | . . . Database Lockouts . | . . . Manual . | . . . Terminals . | . . . Fabricators . | . . . Repair Stations . | . . . Recycling Units . | . . . Scanalyzers . | . . . Garrison Access . | . . . Terminal Hacks . | . . . Fabricator Hacks . | . . . Repair Station Hacks . | . . . Recycling Unit Hacks . | . . . Scanalyzer . | . . . Garrison Access Hacks . | . . . Unauthorized Hacks . | . . . Terminals . | . . . Fabricators . | . . . Repair Stations . | . . . Recycling Units . | . . . Scanalyzers . | . . . Garrison Access . | . . . Data Cores Recovered . | . . . Used . | . . . Hacking Detections . | . . . Full Trace Events . | . . . Feedback Events . | . . . Feedback Blocked . | . . . Robot Schematics Acquired . | . . . Robots Built . | . . . Authchips . | . . . Time . | . . . Total Robot Build Rating . | . . . Part Schematics Acquired . | . . . Parts Built . | . . . Authchips . | . . . Time . | . . . Total Part Build Rating . | . . . Part Studies Acquired . | . . . Parts Repaired . | . . . Time . | . . . Parts Recycled . | . . . Recycled Matter . | . . . Retrieved Matter . | . . . Retrieved Components . | . . . Parts Scanalyzed . | . . . Part Schematics Acquired . | . . . Parts Damaged . | . . . Bothacking | -11 -10 -10 ------------ Run | Yrd Mat Sub Used RIF Installer . | . . . Robots Hacked . | . . . Non-combat . | . . . Combat . | . . . Robot Hacks Applied . | . . . Relay Couplers Released . | . . . Fabnet Peak Effective % . | . . . Robots Rewired . | . . . Allies Hacked . | . . . Hacks Repelled . | . . . Allies | -11 -10 -10 -------- Run | Yrd Mat Sub Total Allies . | . . . Largest Group . | . . . Highest-Rated Group . | . . . Highest-Rated Ally . | . . . Total Orders . | . . . Ally Attacks . | . . . Total Damage . | . . . Kills . | . . . Allies Corrupted . | . . . Allies Melted . | . . . Intel | -11 -10 -10 ------- Run | Yrd Mat Sub Active Infowar (turns) 781 | 146 167 468 Terrain 668 | 33 167 468 Seismic 325 | 146 167 12 Robot Analysis Total . | . . . Derelict Logs Recovered 2 | . . 2 Drone Launches . | . . . Drone Recoveries . | . . . Exploration | -11 -10 -10 ------------- Run | Yrd Mat Sub Turns Passed 822 | 187 167 468 Spaces Moved 644 | 125 86 433 Core 32 | 32 . . Treads . | . . . Legs 41 | . . 41 Wheels 571 | 93 86 392 Hover . | . . . Flight . | . . . Fastest Speed 50 | 50 80 80 Average Speed 83 | 80 80 84 Slowest Speed 190 | 100 80 190 Overloaded Moves . | . . . Propulsion Burnouts . | . . . Robots Hopped . | . . . Potential Cave-ins 1 | . 1 . Cave-ins Triggered . | . . . Exploration Rate (%) 17 | 5 17 31 Regions Visited 2 Branch Regions 1 Pre-discovered Areas 1 | . . 1 Known Exits Taken . | . . . Unknown Exits Taken 2 | 1 1 . Scrap Searched . | . . . Spaces Dug . | . . . Terrain Destroyed 51 | . . 51 Melee . | . . . Projectile . | . . . AOE 51 | . . 51 Terrain Rammed . | . . . Walls Destroyed . | . . . Machines Disabled . | . . . Actions | -11 -10 -10 --------- Run | Yrd Mat Sub Total 848 | 175 158 515 Wait 116 | 15 55 46 Move 642 | 124 85 433 Hop . | . . . Pick Up 15 | 6 1 8 Fast Attach 9 | 8 1 . Attach 8 | . 1 7 Detach . | . . . Swap 6 | 1 2 3 Drop 7 | 3 1 3 Fire 43 | 18 12 13 Melee . | . . . Ram . | . . . Kick . | . . . Crush . | . . . Escape Stasis . | . . . Rewire 2 | . . 2 Trap . | . . . Miscellaneous . | . . . Route ------- -11/Scrapyard -10/Materials -10/Subcaves (discovered 2 exits: [*Mat] / [*Rec]) History --------- Turn | Location | Event 8 | -11/Scrapyard | Discovered new exit (range 15) 188 | -11/Scrapyard | Entered Materials 315 | -10/Materials | Build established: Scavenger-Mutant 345 | -10/Materials | Discovered new exit (range 8) 355 | -10/Materials | Entered Subcaves 356 | -10/Subcaves | Approached by a straggling Scientist 361 | -10/Subcaves | Learned Materials garrison access intel 411 | -10/Subcaves | Discovered new exit (range 8) 424 | -10/Subcaves | Ambushed by swarm of Subdwellers 434 | -10/Subcaves | Ambushed by Subdwellers from Twisted Machinery 434 | -10/Subcaves | Ambushed by Subdwellers from Twisted Machinery 443 | -10/Subcaves | Ambushed by Subdweller buried in earth 469 | -10/Subcaves | Lost 3 allies 609 | -10/Subcaves | A swath of the cavern ceiling suddenly collapsed 780 | -10/Subcaves | Core integrity fell below 50% 805 | -10/Subcaves | Discovered new exit (range 16) 821 | -10/Subcaves | Lost 6 parts (1p2n3w) 821 | -10/Subcaves | Core integrity fell below 20% 823 | -10/Subcaves | Destroyed by Y-45 Defender with Beam Rifle Last Messages --------------- 00689_ Lgt. Ion Engine fries itself beyond repair. 00701_ Acquired Wheel. YJ-0SF(c): "I think it's somewhere northeast of here" 00723_ Acquired derelict log, extracted data. World map updated: -8/Materials. 00753_ YJ-0SF(c) destroyed. 00753_ GO-W2W(R) destroyed. 00755_ Acquired Sub. Monowheel. 00761_ Beamcaster destroyed. 00764_ Acquired 2 matter. 00765_ Wheel destroyed. 00775_ Sub. Machine Gun destroyed. 00781_ Sub. Power Source destroyed. 00787_ Critical hit (Meltdown: +270). 00790_ Assault Rifle destroyed. 00805_ EXIT=FOUND 00821_ Acquired 10 matter. Map ----- +----------------------------------------------------+ | ?#????? ??# #???????????????? | | ?????# ???# ## ## ###???????????????? | | ???#?# ????#### #######?????????????????? | | ???#?## ?????## #??#????????????????????? | | ??????# ###### #???????????????????????? | | ??????? ## ##?##???????????????????? | | ???????? ## ##??????????????????? | | ###??#?? #??????????????????? | | ???????## ##??????????????????? | | ???????## ## ###???????????????????? | | ??????## ## ###% #????????????????? | | ??##### #????????????????? | | #?## ##????????????????? | | ### [ #?????????????????? | | % # % #????#????????????? | | ## #### % #????????????????? | | #?# % ## #??? %#????????????????? | | ##? ##### #????????????????? | | ##### #???# %#????????????????? | | ## #### #??? #### #???????????????? | | ?## #??# ############### % #??????????????? | | ?#"%%##?# ### ##" """#?? #??????????????? | | ## #"## Y %## "#??? ???????????????? | | # % #"#? # "#???? ???????????????? | | # ####### % ##?????????????????????? | | # % %%@<#?????????????????????? | | ####" % %"##?????????????????????? | | ???#"#### R # "#??????????????????????? | | ???###??# R# ## %"#??????????????????????? | | ???????## #### ##" ""#??????????????????????? | | ??????## ##?## ##########??????????????????????? | | #?#???# #??###???????????????????????????????? | | #????## #????#???????????????????????????????? | | ?#????# ##???????????????????????????????????? | | ?##???# #?????????????????????#?????????????? | | ??????## ##???????????????????????????????????? | | ???????# #????????????????????????????????????? | | ???????# %##???????????????????????????????????? | | ???????# * #????????? ???????#?????????????????? | | ???????# ##??#??????????????#????????????????? | | ??????## ###?????? ?????????????????????????? | | ?????## ##????????????????????????????????? | | ?????# ####? ???????????????????????????? | | ?????#### #? ???????????????????????????? | | ???????### ##?????????????????????????????? | | ??????#### #? ????????????????????????????? | | ?##?### ## ##??????##?????????????????????? | | ## ## #?# #????? #?????????????????????? | | "#? ##??? ##????????????????????? | | % ## ### % ????????????????????? | +----------------------------------------------------+ Best States ------------- Heat Dissipation 25 Energy Generation 15 Energy Capacity 250 Matter Stores 300 Matter Capacity 300 Sight Range 16 Terrain Scan Range 16 Terrain Scan Density 10 Evasion (%) 55 Item Schematics ----------------- None Robot Schematics ------------------ None Fabricated ------------ Nothing Repaired ---------- Nothing Studied --------- None Alien Tech Used ----------------- None Achievements -------------- Do Not Disturb Challenges ------------ None Game ------ Seed GuidanceFortressCloak Manual? 0 Play Time 00:20:59 Cumulative 15.6 hours Start 2026.03.28 @ 00:20:06 End 2026.03.28 @ 00:51:08 Sessions 1 Manual Loads 0 Difficulty Rogue Special Mode None Game No. 20 Rogue 20 Adventurer 0 Explorer 0 Win Type - Total 0 Types 0/0/0/0/0/0/0/0/0/0 Lore% 9 Gallery% 12 Achievement% 11 Wizard Run 0 Options --------- Layout 1 ASCII 0 Keyboard 0 Movement Mouse Keybinds 0 Fullscreen 2 Font 24/Smallcaps Map View 50x35 Zoom Use 0% Tactical HUD 1 Map Filters NONE Filters NONE Steam 1 RUN: 9ceaaaf5-589d-4b3d-938a-a6a4801a2109